[Event "*** Titled Tuesday Blitz"]
[Site "Chess.com"]
[Date "2021.02.02"]
[Round "6"]
[White "Sanan_Sjugirov"]
[Black "horripile"]
[Result "1-0"]
[WhiteElo "2902"]
[BlackElo "2709"]
[TimeControl "180+1"]
[EndTime "11:10:10 PST"]
[Termination "Sanan_Sjugirov won by checkmate"]

1. d4 {[%clk 0:03:00.9]} 1... Nf6 {[%clk 0:02:59.6]} 2. c4 {[%clk 0:03:00.9]}
2... e6 {[%clk 0:02:59.8]} 3. Nf3 {[%clk 0:03:00.7]} 3... Bb4+ {[%clk
0:02:59.3]} 4. Nbd2 {[%clk 0:03:00.3]} 4... c5 {[%clk 0:02:58.5]} 5. dxc5 {[%clk
0:02:38.7]} 5... O-O {[%clk 0:02:52.2]} 6. g3 {[%clk 0:02:29.8]} 6... Na6 {[%clk
0:02:33.2]} 7. Bg2 {[%clk 0:02:28.9]} 7... Nxc5 {[%clk 0:02:20.8]} 8. O-O {[%clk
0:02:28.5]} 8... b6 {[%clk 0:02:11]} 9. Ne5 {[%clk 0:01:56.3]} 9... Bb7 {[%clk
0:02:08.1]} 10. Bxb7 {[%clk 0:01:55.9]} 10... Nxb7 {[%clk 0:02:09]} 11. Ndf3
{[%clk 0:01:56.4]} 11... Be7 {[%clk 0:01:57.7]} 12. b3 {[%clk 0:01:51]} 12...
Rc8 {[%clk 0:01:46.9]} 13. Bb2 {[%clk 0:01:51]} 13... Nc5 {[%clk 0:01:44.7]} 14.
Rc1 {[%clk 0:01:40.6]} 14... Qc7 {[%clk 0:01:42.8]} 15. Nd3 {[%clk 0:01:31.9]}
15... Rfd8 {[%clk 0:01:36.3]} 16. Nxc5 {[%clk 0:01:31.1]} 16... Qxc5 {[%clk
0:01:36]} 17. Qd3 {[%clk 0:01:26.5]} 17... h6 {[%clk 0:01:18.7]} 18. e4 {[%clk
0:01:16.9]} 18... d6 {[%clk 0:01:09.6]} 19. Kg2 {[%clk 0:01:04.6]} 19... Qc6
{[%clk 0:01:04.7]} 20. Rfe1 {[%clk 0:01:03.7]} 20... a6 {[%clk 0:01:04.1]} 21.
Qe2 {[%clk 0:01:01]} 21... Qb7 {[%clk 0:01:03.6]} 22. h3 {[%clk 0:00:52.9]}
22... b5 {[%clk 0:01:01.8]} 23. cxb5 {[%clk 0:00:52.3]} 23... axb5 {[%clk
0:01:02.7]} 24. Rcd1 {[%clk 0:00:35.9]} 24... b4 {[%clk 0:00:59.8]} 25. Kg1
{[%clk 0:00:33.3]} 25... Rd7 {[%clk 0:00:55.5]} 26. Qd3 {[%clk 0:00:20.4]} 26...
Rcd8 {[%clk 0:00:38.5]} 27. Qe2 {[%clk 0:00:10.5]} 27... d5 {[%clk 0:00:36.9]}
28. Ne5 {[%clk 0:00:06.5]} 28... Rc7 {[%clk 0:00:31.4]} 29. exd5 {[%clk
0:00:06.9]} 29... Rxd5 {[%clk 0:00:27.6]} 30. Rxd5 {[%clk 0:00:06.7]} 30... Nxd5
{[%clk 0:00:27.1]} 31. Nc4 {[%clk 0:00:06.5]} 31... Bf6 {[%clk 0:00:27.2]} 32.
Bxf6 {[%clk 0:00:05.8]} 32... Nxf6 {[%clk 0:00:28.1]} 33. Qe5 {[%clk 0:00:04.4]}
33... Nd5 {[%clk 0:00:26.9]} 34. Re4 {[%clk 0:00:02.3]} 34... Qa7 {[%clk
0:00:26.8]} 35. Rg4 {[%clk 0:00:02.2]} 35... g6 {[%clk 0:00:24.9]} 36. Rh4
{[%clk 0:00:02.6]} 36... h5 {[%clk 0:00:23.1]} 37. Re4 {[%clk 0:00:02.2]} 37...
Qxa2 {[%clk 0:00:20.7]} 38. Rd4 {[%clk 0:00:02.4]} 38... Qxb3 {[%clk 0:00:18.9]}
39. Ne3 {[%clk 0:00:02.4]} 39... Qc3 {[%clk 0:00:17.6]} 40. Nxd5 {[%clk
0:00:01.8]} 40... exd5 {[%clk 0:00:17.5]} 41. Qxd5 {[%clk 0:00:02.7]} 41... b3
{[%clk 0:00:16.9]} 42. Qe5 {[%clk 0:00:03.1]} 42... Rc8 {[%clk 0:00:16.2]} 43.
Rd8+ {[%clk 0:00:02.9]} 43... Rxd8 {[%clk 0:00:14.9]} 44. Qxc3 {[%clk
0:00:03.1]} 44... Rb8 {[%clk 0:00:15.8]} 45. Qb2 {[%clk 0:00:03.6]} 45... Kf8
{[%clk 0:00:15.7]} 46. Kg2 {[%clk 0:00:03.5]} 46... Ke7 {[%clk 0:00:16.1]} 47.
Kf3 {[%clk 0:00:03.8]} 47... Kd7 {[%clk 0:00:15.8]} 48. Ke4 {[%clk 0:00:03.8]}
48... Kc6 {[%clk 0:00:16]} 49. Kd4 {[%clk 0:00:04.1]} 49... Rb7 {[%clk
0:00:16.2]} 50. Kc4 {[%clk 0:00:03.9]} 50... Kd7 {[%clk 0:00:16]} 51. Kd5 {[%clk
0:00:03.7]} 51... Rb5+ {[%clk 0:00:15.7]} 52. Kc4 {[%clk 0:00:04.2]} 52... Rb7
{[%clk 0:00:16.6]} 53. Kc5 {[%clk 0:00:04.6]} 53... Ke6 {[%clk 0:00:16.4]} 54.
Kc6 {[%clk 0:00:04.9]} 54... Rb8 {[%clk 0:00:16.6]} 55. Kc7 {[%clk 0:00:04.8]}
55... Rb5 {[%clk 0:00:16.3]} 56. Kc6 {[%clk 0:00:04.7]} 56... Rb8 {[%clk
0:00:13.9]} 57. f4 {[%clk 0:00:04.7]} 57... Rc8+ {[%clk 0:00:13.8]} 58. Kb7
{[%clk 0:00:04.6]} 58... Rd8 {[%clk 0:00:13.2]} 59. Qe5+ {[%clk 0:00:04.1]}
59... Kd7 {[%clk 0:00:13]} 60. Qd5+ {[%clk 0:00:04.4]} 60... Ke7 {[%clk
0:00:12.8]} 61. Qxb3 {[%clk 0:00:05.1]} 61... Rd6 {[%clk 0:00:12.8]} 62. Qb4
{[%clk 0:00:05]} 62... Kd7 {[%clk 0:00:12]} 63. Qb5+ {[%clk 0:00:05.3]} 63...
Ke7 {[%clk 0:00:11.7]} 64. Kc7 {[%clk 0:00:05.8]} 64... Re6 {[%clk 0:00:11.7]}
65. Qc5+ {[%clk 0:00:06.1]} 65... Kf6 {[%clk 0:00:11.6]} 66. Qd4+ {[%clk
0:00:06.4]} 66... Ke7 {[%clk 0:00:11.6]} 67. g4 {[%clk 0:00:06.7]} 67... Kf8
{[%clk 0:00:10.8]} 68. f5 {[%clk 0:00:06.4]} 68... gxf5 {[%clk 0:00:10.8]} 69.
gxf5 {[%clk 0:00:07.3]} 69... Re7+ {[%clk 0:00:11.3]} 70. Kd6 {[%clk 0:00:07.4]}
70... Re8 {[%clk 0:00:11.6]} 71. Qh8# {[%clk 0:00:07.2]} 1-0

[Event "*** Titled Tuesday Blitz"]
[Site "Chess.com"]
[Date "2021.02.02"]
[Round "6"]
[White "SirStrateg"]
[Black "DrVelja"]
[Result "1-0"]
[WhiteElo "2670"]
[BlackElo "2877"]
[TimeControl "180+1"]
[EndTime "11:10:30 PST"]
[Termination "SirStrateg won by resignation"]

1. d4 {[%clk 0:01:30.9]} 1... Nf6 {[%clk 0:02:57]} 2. Nf3 {[%clk 0:01:31]} 2...
g6 {[%clk 0:02:57.6]} 3. Bf4 {[%clk 0:01:31.4]} 3... Bg7 {[%clk 0:02:58.5]} 4.
Nc3 {[%clk 0:01:31]} 4... d5 {[%clk 0:02:58.1]} 5. Qd2 {[%clk 0:01:31.2]} 5...
O-O {[%clk 0:02:57.4]} 6. O-O-O {[%clk 0:01:27.4]} 6... c5 {[%clk 0:02:57.4]} 7.
dxc5 {[%clk 0:01:27.3]} 7... Qa5 {[%clk 0:02:55.3]} 8. Kb1 {[%clk 0:01:25.7]}
8... Qxc5 {[%clk 0:02:46.6]} 9. e3 {[%clk 0:01:22.3]} 9... Rd8 {[%clk
0:02:42.7]} 10. Nd4 {[%clk 0:01:16.9]} 10... a6 {[%clk 0:02:24.5]} 11. f3 {[%clk
0:01:13.1]} 11... b5 {[%clk 0:02:24.2]} 12. g4 {[%clk 0:01:07.6]} 12... Nc6
{[%clk 0:02:22.1]} 13. Nxc6 {[%clk 0:01:07.3]} 13... Qxc6 {[%clk 0:02:23]} 14.
Be5 {[%clk 0:01:01.6]} 14... Bb7 {[%clk 0:02:16.5]} 15. Ne2 {[%clk 0:00:56]}
15... d4 {[%clk 0:02:09.4]} 16. Nxd4 {[%clk 0:00:54.7]} 16... Qc5 {[%clk
0:02:10]} 17. Bxf6 {[%clk 0:00:46.3]} 17... Bxf6 {[%clk 0:02:10.9]} 18. Bd3
{[%clk 0:00:45.8]} 18... Bxd4 {[%clk 0:02:02.9]} 19. exd4 {[%clk 0:00:46]} 19...
Rxd4 {[%clk 0:02:03.8]} 20. Rhf1 {[%clk 0:00:40.1]} 20... Rad8 {[%clk
0:02:00.2]} 21. h4 {[%clk 0:00:38.9]} 21... e5 {[%clk 0:01:57.9]} 22. Qg5 {[%clk
0:00:34.1]} 22... Kg7 {[%clk 0:01:36.7]} 23. h5 {[%clk 0:00:25.2]} 23... h6
{[%clk 0:01:35.5]} 24. Qc1 {[%clk 0:00:20.4]} 24... g5 {[%clk 0:01:34.5]} 25.
Rde1 {[%clk 0:00:20.7]} 25... Rf4 {[%clk 0:01:30.1]} 26. Qe3 {[%clk 0:00:20.7]}
26... Qxe3 {[%clk 0:01:28.2]} 27. Rxe3 {[%clk 0:00:21.1]} 27... f6 {[%clk
0:01:28.5]} 28. a3 {[%clk 0:00:20.3]} 28... Kf8 {[%clk 0:01:28.1]} 29. Kc1
{[%clk 0:00:20.4]} 29... Ke7 {[%clk 0:01:28]} 30. Rf2 {[%clk 0:00:20.9]} 30...
Rfd4 {[%clk 0:01:27.5]} 31. Kd2 {[%clk 0:00:20.5]} 31... Bc6 {[%clk 0:01:27.6]}
32. Ke2 {[%clk 0:00:20.7]} 32... a5 {[%clk 0:01:27.8]} 33. Rf1 {[%clk
0:00:20.4]} 33... Rc8 {[%clk 0:01:20.4]} 34. Ra1 {[%clk 0:00:20.5]} 34... Be8
{[%clk 0:01:18.1]} 35. Rb1 {[%clk 0:00:19.6]} 35... Ra8 {[%clk 0:01:14.4]} 36.
Ra1 {[%clk 0:00:19.6]} 36... Rb8 {[%clk 0:01:14.7]} 37. Re4 {[%clk 0:00:19.5]}
37... Rd6 {[%clk 0:01:11.9]} 38. b4 {[%clk 0:00:18.9]} 38... Bc6 {[%clk
0:01:09.5]} 39. Re3 {[%clk 0:00:18.4]} 39... Ra8 {[%clk 0:01:08.5]} 40. Rb1
{[%clk 0:00:18.5]} 40... axb4 {[%clk 0:01:08.6]} 41. axb4 {[%clk 0:00:16.6]}
41... Rd4 {[%clk 0:01:01.8]} 42. Rb3 {[%clk 0:00:14.9]} 42... Kd6 {[%clk
0:00:57.2]} 43. Rb2 {[%clk 0:00:12.5]} 43... Ra3 {[%clk 0:00:54.8]} 44. Kd2
{[%clk 0:00:09.8]} 44... Ra1 {[%clk 0:00:47.3]} 45. Ke2 {[%clk 0:00:09.7]} 45...
Rh1 {[%clk 0:00:46.2]} 46. Kf2 {[%clk 0:00:09.2]} 46... Rh2+ {[%clk 0:00:38.4]}
47. Kg3 {[%clk 0:00:09.5]} 47... Rd2 {[%clk 0:00:38.9]} 48. Rb3 {[%clk
0:00:08.4]} 48... Bd5 {[%clk 0:00:26.8]} 49. Rb1 {[%clk 0:00:07.2]} 49... Bc4
{[%clk 0:00:26.1]} 50. Bg6 {[%clk 0:00:06.9]} 50... Be6 {[%clk 0:00:22.9]} 51.
Ra3 {[%clk 0:00:04.3]} 51... Ke7 {[%clk 0:00:20.6]} 52. Ra7+ {[%clk 0:00:04.4]}
52... Rd7 {[%clk 0:00:20.9]} 53. Rxd7+ {[%clk 0:00:04.5]} 53... Bxd7 {[%clk
0:00:21.8]} 54. Ra1 {[%clk 0:00:03.8]} 54... Rd4 {[%clk 0:00:22.2]} 55. Ra7
{[%clk 0:00:03.9]} 55... Kd6 {[%clk 0:00:20.9]} 56. c3 {[%clk 0:00:01.9]} 56...
Rd2 {[%clk 0:00:20.4]} 57. Be4 {[%clk 0:00:01.3]} 57... Rd1 {[%clk 0:00:17.6]}
58. Ra6+ {[%clk 0:00:01.8]} 58... Ke7 {[%clk 0:00:18]} 59. Rb6 {[%clk
0:00:02.4]} 59... Rc1 {[%clk 0:00:17.5]} 60. Rb7 {[%clk 0:00:02.9]} 60... Kd6
{[%clk 0:00:17.7]} 61. Rb6+ {[%clk 0:00:03.5]} 61... Ke7 {[%clk 0:00:17.5]} 62.
Rb7 {[%clk 0:00:04.1]} 62... Kd8 {[%clk 0:00:18.1]} 63. Rb6 {[%clk 0:00:04.5]}
63... Rxc3 {[%clk 0:00:18.5]} 64. Rxf6 {[%clk 0:00:04.5]} 64... Rb3 {[%clk
0:00:19.1]} 65. Rxh6 {[%clk 0:00:04.9]} 65... Rxb4 {[%clk 0:00:20]} 66. Rg6
{[%clk 0:00:05.5]} 66... Rb1 {[%clk 0:00:19.4]} 67. Rxg5 {[%clk 0:00:06]} 67...
Rg1+ {[%clk 0:00:18.7]} 68. Kf2 {[%clk 0:00:05.9]} 68... Rh1 {[%clk 0:00:19]}
69. Rxe5 {[%clk 0:00:06.3]} 69... b4 {[%clk 0:00:18.9]} 70. Rd5 {[%clk
0:00:06.8]} 70... Ke7 {[%clk 0:00:19]} 71. Rd4 {[%clk 0:00:06.1]} 71... b3
{[%clk 0:00:19]} 72. Rb4 {[%clk 0:00:06.4]} 72... Be6 {[%clk 0:00:19.4]} 73. Kg3
{[%clk 0:00:06.9]} 73... Kd6 {[%clk 0:00:17.9]} 74. Kf4 {[%clk 0:00:07.3]} 74...
Kc5 {[%clk 0:00:18.2]} 75. Rb8 {[%clk 0:00:07.7]} 75... Bc4 {[%clk 0:00:18.6]}
76. Kg5 {[%clk 0:00:07.3]} 76... Bb5 {[%clk 0:00:17.9]} 77. h6 {[%clk
0:00:07.6]} 77... b2 {[%clk 0:00:18.3]} 78. h7 {[%clk 0:00:07.7]} 78... Bc6
{[%clk 0:00:16.6]} 79. Bxc6 {[%clk 0:00:07.1]} 79... Kxc6 {[%clk 0:00:16.6]} 80.
Kg6 {[%clk 0:00:07.6]} 80... Kc7 {[%clk 0:00:13.8]} 81. Rxb2 {[%clk 0:00:07.4]}
1-0

[Event "*** Titled Tuesday Blitz"]
[Site "Chess.com"]
[Date "2021.02.02"]
[Round "6"]
[White "karinachess1"]
[Black "korbul"]
[Result "1/2-1/2"]
[WhiteElo "2480"]
[BlackElo "2610"]
[TimeControl "180+1"]
[EndTime "11:10:36 PST"]
[Termination "Game drawn by repetition"]

1. c4 {[%clk 0:03:00.9]} 1... e6 {[%clk 0:02:59.6]} 2. Nf3 {[%clk 0:03:00.2]}
2... d5 {[%clk 0:02:59.6]} 3. e3 {[%clk 0:02:59]} 3... Nf6 {[%clk 0:02:59.5]} 4.
Nc3 {[%clk 0:02:57.2]} 4... b6 {[%clk 0:02:59.6]} 5. cxd5 {[%clk 0:02:47.6]}
5... exd5 {[%clk 0:02:58.8]} 6. d4 {[%clk 0:02:47.1]} 6... a6 {[%clk 0:02:56.2]}
7. Be2 {[%clk 0:02:45.3]} 7... Bd6 {[%clk 0:02:54.9]} 8. Ne5 {[%clk 0:02:34.8]}
8... O-O {[%clk 0:02:46.7]} 9. O-O {[%clk 0:02:32.6]} 9... Bb7 {[%clk
0:02:43.3]} 10. f4 {[%clk 0:02:20.6]} 10... c5 {[%clk 0:02:40.9]} 11. Bf3 {[%clk
0:02:02.5]} 11... Ne4 {[%clk 0:02:24.2]} 12. Qc2 {[%clk 0:01:36.8]} 12... f5
{[%clk 0:02:05]} 13. Qb3 {[%clk 0:01:10.8]} 13... c4 {[%clk 0:01:55.2]} 14. Qc2
{[%clk 0:01:10.9]} 14... b5 {[%clk 0:01:54.7]} 15. a3 {[%clk 0:01:10.1]} 15...
Nd7 {[%clk 0:01:41.8]} 16. Bd2 {[%clk 0:01:08.6]} 16... Nxe5 {[%clk 0:01:33.1]}
17. fxe5 {[%clk 0:01:06.5]} 17... Be7 {[%clk 0:01:33.2]} 18. Bxe4 {[%clk
0:01:00.1]} 18... dxe4 {[%clk 0:01:23]} 19. Rae1 {[%clk 0:00:59.6]} 19... Bd5
{[%clk 0:01:17.6]} 20. Ne2 {[%clk 0:00:57]} 20... g5 {[%clk 0:01:14]} 21. Bb4
{[%clk 0:00:43.1]} 21... Bxb4 {[%clk 0:01:12.6]} 22. axb4 {[%clk 0:00:44]} 22...
a5 {[%clk 0:01:07]} 23. bxa5 {[%clk 0:00:36.3]} 23... b4 {[%clk 0:01:07.1]} 24.
Ng3 {[%clk 0:00:34.8]} 24... Qd7 {[%clk 0:01:05.2]} 25. Nh5 {[%clk 0:00:33.1]}
25... Kh8 {[%clk 0:00:36]} 26. Nf6 {[%clk 0:00:32.3]} 26... Qe6 {[%clk
0:00:35.9]} 27. Qd2 {[%clk 0:00:28.3]} 27... Rfb8 {[%clk 0:00:27.8]} 28. Ra1
{[%clk 0:00:25.5]} 28... Ra6 {[%clk 0:00:20.1]} 29. Qf2 {[%clk 0:00:21]} 29...
Rb7 {[%clk 0:00:19.6]} 30. Qxf5 {[%clk 0:00:20.1]} 30... Qxf5 {[%clk 0:00:18.9]}
31. Rxf5 {[%clk 0:00:21]} 31... Be6 {[%clk 0:00:18.4]} 32. Rf2 {[%clk
0:00:11.7]} 32... c3 {[%clk 0:00:17]} 33. bxc3 {[%clk 0:00:12.1]} 33... bxc3
{[%clk 0:00:17.1]} 34. d5 {[%clk 0:00:10.7]} 34... Bc8 {[%clk 0:00:15.7]} 35.
Rc1 {[%clk 0:00:10.9]} 35... Rc7 {[%clk 0:00:15.3]} 36. d6 {[%clk 0:00:11.4]}
36... Rc5 {[%clk 0:00:14.1]} 37. d7 {[%clk 0:00:11.4]} 37... Bxd7 {[%clk
0:00:14.4]} 38. Nxd7 {[%clk 0:00:12.3]} 38... Rcxa5 {[%clk 0:00:14.7]} 39. Rxc3
{[%clk 0:00:09.5]} 39... Ra1+ {[%clk 0:00:14.7]} 40. Rf1 {[%clk 0:00:09.9]}
40... R1a2 {[%clk 0:00:15.6]} 41. Rfc1 {[%clk 0:00:09.5]} 41... Rd2 {[%clk
0:00:14.9]} 42. Nf6 {[%clk 0:00:09.4]} 42... Raa2 {[%clk 0:00:12]} 43. Rc8+
{[%clk 0:00:05.2]} 43... Kg7 {[%clk 0:00:12.1]} 44. Rg8+ {[%clk 0:00:04.9]}
44... Kh6 {[%clk 0:00:11.8]} 45. Nxe4 {[%clk 0:00:03.9]} 45... Rxg2+ {[%clk
0:00:11]} 46. Kf1 {[%clk 0:00:04.4]} 46... Rxh2 {[%clk 0:00:11.2]} 47. Ng3
{[%clk 0:00:04.5]} 47... Rhf2+ {[%clk 0:00:10.2]} 48. Ke1 {[%clk 0:00:04.5]}
48... Rg2 {[%clk 0:00:10]} 49. Nf1 {[%clk 0:00:04.2]} 49... Rge2+ {[%clk
0:00:09.2]} 50. Kd1 {[%clk 0:00:04.5]} 50... Rf2 {[%clk 0:00:10.1]} 51. Ke1
{[%clk 0:00:03.6]} 51... Rfe2+ {[%clk 0:00:10.1]} 52. Kd1 {[%clk 0:00:04.2]}
52... Rf2 {[%clk 0:00:10.4]} 53. Rc6+ {[%clk 0:00:04.6]} 53... Kh5 {[%clk
0:00:09.5]} 54. Ng3+ {[%clk 0:00:03.8]} 54... Kg4 {[%clk 0:00:09.4]} 55. Ke1
{[%clk 0:00:04.1]} 55... Rg2 {[%clk 0:00:08.8]} 56. Kf1 {[%clk 0:00:02]} 56...
Rgf2+ {[%clk 0:00:07.8]} 57. Ke1 {[%clk 0:00:01.8]} 57... Rg2 {[%clk 0:00:07.3]}
58. Rc4+ {[%clk 0:00:02.4]} 58... Kf3 {[%clk 0:00:06.6]} 59. Rf8+ {[%clk
0:00:02.8]} 59... Kxe3 {[%clk 0:00:06.7]} 60. Rc3+ {[%clk 0:00:02.3]} 60... Kd4
{[%clk 0:00:06.9]} 61. Rc1 {[%clk 0:00:02.1]} 61... Rg1+ {[%clk 0:00:06.2]} 62.
Nf1 {[%clk 0:00:01.9]} 62... Rgg2 {[%clk 0:00:06.5]} 63. e6 {[%clk 0:00:01.9]}
63... Rge2+ {[%clk 0:00:06.2]} 64. Kd1 {[%clk 0:00:02.8]} 64... Rf2 {[%clk
0:00:06.5]} 65. Rxf2 {[%clk 0:00:02.6]} 65... Rxf2 {[%clk 0:00:06.2]} 66. Ke1
{[%clk 0:00:03.5]} 66... Rf6 {[%clk 0:00:05.7]} 67. Rd1+ {[%clk 0:00:04]} 67...
Kc5 {[%clk 0:00:04]} 68. Rc1+ {[%clk 0:00:04.4]} 68... Kd6 {[%clk 0:00:03.6]}
69. Rd1+ {[%clk 0:00:05]} 69... Kxe6 {[%clk 0:00:03.8]} 70. Rd2 {[%clk
0:00:05.5]} 70... Kf7 {[%clk 0:00:04.7]} 71. Re2 {[%clk 0:00:05.9]} 71... Kg6
{[%clk 0:00:05.6]} 72. Rf2 {[%clk 0:00:06.5]} 72... Re6+ {[%clk 0:00:06.5]} 73.
Kd2 {[%clk 0:00:06.6]} 73... Rf6 {[%clk 0:00:06.3]} 74. Rxf6+ {[%clk 0:00:06.6]}
74... Kxf6 {[%clk 0:00:06]} 75. Ke3 {[%clk 0:00:07.5]} 75... h5 {[%clk
0:00:06.5]} 76. Kf3 {[%clk 0:00:08.4]} 76... Kf5 {[%clk 0:00:07.2]} 77. Kg3
{[%clk 0:00:08.7]} 77... h4+ {[%clk 0:00:08.1]} 78. Kh3 {[%clk 0:00:08.8]} 78...
Kf4 {[%clk 0:00:08.8]} 79. Nh2 {[%clk 0:00:09.4]} 79... Kf5 {[%clk 0:00:08.5]}
80. Ng4 {[%clk 0:00:09.9]} 80... Kf4 {[%clk 0:00:08.8]} 81. Nh2 {[%clk
0:00:10.5]} 81... Kf5 {[%clk 0:00:09.2]} 82. Ng4 {[%clk 0:00:11.1]} 82... Kf4
{[%clk 0:00:09.6]} 83. Nh2 {[%clk 0:00:11.7]} 1/2-1/2

[Event "*** Titled Tuesday Blitz"]
[Site "Chess.com"]
[Date "2021.02.02"]
[Round "6"]
[White "kleopl"]
[Black "Sanyura"]
[Result "1-0"]
[WhiteElo "2515"]
[BlackElo "2688"]
[TimeControl "180+1"]
[EndTime "11:10:37 PST"]
[Termination "kleopl won by checkmate"]

1. e4 {[%clk 0:03:00.9]} 1... c5 {[%clk 0:02:59.5]} 2. Nc3 {[%clk 0:03:00.1]}
2... e6 {[%clk 0:03:00.1]} 3. b3 {[%clk 0:02:56.9]} 3... Nc6 {[%clk 0:03:00.6]}
4. Nf3 {[%clk 0:02:54.5]} 4... d5 {[%clk 0:02:59.8]} 5. exd5 {[%clk 0:02:51.1]}
5... exd5 {[%clk 0:03:00.7]} 6. Bb5 {[%clk 0:02:49.4]} 6... Nf6 {[%clk
0:02:59.2]} 7. O-O {[%clk 0:02:47.8]} 7... Be7 {[%clk 0:02:56]} 8. d4 {[%clk
0:02:47.7]} 8... O-O {[%clk 0:02:52.4]} 9. Ba3 {[%clk 0:02:42.3]} 9... Qa5
{[%clk 0:02:48]} 10. Bb2 {[%clk 0:02:35]} 10... Bg4 {[%clk 0:02:45]} 11. Bxc6
{[%clk 0:02:19.5]} 11... bxc6 {[%clk 0:02:44.8]} 12. dxc5 {[%clk 0:02:14.3]}
12... Bxc5 {[%clk 0:02:34.4]} 13. Qd3 {[%clk 0:02:12.2]} 13... Rfe8 {[%clk
0:02:29.9]} 14. Na4 {[%clk 0:01:59]} 14... Be7 {[%clk 0:02:28]} 15. Ne5 {[%clk
0:01:54.5]} 15... Qc7 {[%clk 0:02:20.3]} 16. Nxg4 {[%clk 0:01:48.2]} 16... Nxg4
{[%clk 0:02:21.2]} 17. Qg3 {[%clk 0:01:46.8]} 17... Qxg3 {[%clk 0:02:19.6]} 18.
hxg3 {[%clk 0:01:47.7]} 18... Bb4 {[%clk 0:02:06.7]} 19. a3 {[%clk 0:01:44.2]}
19... Ba5 {[%clk 0:01:48.1]} 20. Bc3 {[%clk 0:01:34.6]} 20... Bc7 {[%clk
0:01:43.6]} 21. Rfe1 {[%clk 0:01:29.6]} 21... h5 {[%clk 0:01:38.3]} 22. Bd4
{[%clk 0:01:23]} 22... a6 {[%clk 0:01:26.7]} 23. Bc3 {[%clk 0:01:12.8]} 23...
Kh7 {[%clk 0:01:04.1]} 24. Rxe8 {[%clk 0:01:11.1]} 24... Rxe8 {[%clk 0:01:05]}
25. Re1 {[%clk 0:01:11.1]} 25... Rc8 {[%clk 0:00:54.2]} 26. Re7 {[%clk
0:01:01.5]} 26... Kg6 {[%clk 0:00:53.7]} 27. Kf1 {[%clk 0:00:59.8]} 27... Bd6
{[%clk 0:00:53.1]} 28. Ra7 {[%clk 0:00:55.9]} 28... Bxa3 {[%clk 0:00:52.9]} 29.
Rxa6 {[%clk 0:00:55.8]} 29... Bd6 {[%clk 0:00:36.5]} 30. Nb6 {[%clk 0:00:53.3]}
30... Rd8 {[%clk 0:00:36]} 31. Ba5 {[%clk 0:00:49.9]} 31... Bc7 {[%clk
0:00:31.2]} 32. Na4 {[%clk 0:00:37.4]} 32... Bxa5 {[%clk 0:00:30.9]} 33. Rxa5
{[%clk 0:00:38.3]} 33... Re8 {[%clk 0:00:30.1]} 34. Ra6 {[%clk 0:00:33.2]} 34...
Nh2+ {[%clk 0:00:25.7]} 35. Kg1 {[%clk 0:00:33.4]} 35... Ng4 {[%clk 0:00:26.1]}
36. Kf1 {[%clk 0:00:33.7]} 36... Re6 {[%clk 0:00:20.1]} 37. Nc5 {[%clk
0:00:33.6]} 37... Rf6 {[%clk 0:00:20.6]} 38. Nd3 {[%clk 0:00:31.6]} 38... Kh7
{[%clk 0:00:16.9]} 39. Ke2 {[%clk 0:00:30.3]} 39... Re6+ {[%clk 0:00:16.5]} 40.
Kd2 {[%clk 0:00:29.8]} 40... Nf6 {[%clk 0:00:15.7]} 41. f3 {[%clk 0:00:29.2]}
41... g5 {[%clk 0:00:14.9]} 42. Nc5 {[%clk 0:00:25.9]} 42... Rd6 {[%clk
0:00:15.1]} 43. Nb7 {[%clk 0:00:26.1]} 43... Rd7 {[%clk 0:00:13.4]} 44. Rxc6
{[%clk 0:00:24]} 44... Kg7 {[%clk 0:00:12.3]} 45. Nc5 {[%clk 0:00:23.2]} 45...
Ra7 {[%clk 0:00:12.5]} 46. Nd3 {[%clk 0:00:22.5]} 46... g4 {[%clk 0:00:11.4]}
47. Nf4 {[%clk 0:00:20.9]} 47... Ra2 {[%clk 0:00:06.7]} 48. Rd6 {[%clk
0:00:20.3]} 48... Ra5 {[%clk 0:00:05.9]} 49. b4 {[%clk 0:00:18.6]} 49... Rb5
{[%clk 0:00:05.8]} 50. c3 {[%clk 0:00:19]} 50... h4 {[%clk 0:00:05.2]} 51. gxh4
{[%clk 0:00:18.4]} 51... gxf3 {[%clk 0:00:05.6]} 52. gxf3 {[%clk 0:00:18.4]}
52... d4 {[%clk 0:00:05.6]} 53. Rxd4 {[%clk 0:00:17.1]} 53... Kf8 {[%clk
0:00:04.4]} 54. Nd3 {[%clk 0:00:14.1]} 54... Rf5 {[%clk 0:00:02.9]} 55. Ke2
{[%clk 0:00:12.1]} 55... Rb5 {[%clk 0:00:02.8]} 56. Nc5 {[%clk 0:00:11.8]} 56...
Rb8 {[%clk 0:00:03.1]} 57. Nd7+ {[%clk 0:00:11]} 57... Nxd7 {[%clk 0:00:03.2]}
58. Rxd7 {[%clk 0:00:11.9]} 58... Ke8 {[%clk 0:00:03.2]} 59. Rd4 {[%clk
0:00:10.8]} 59... Ke7 {[%clk 0:00:03.5]} 60. Kd3 {[%clk 0:00:10.9]} 60... Ke6
{[%clk 0:00:04.1]} 61. Re4+ {[%clk 0:00:10.8]} 61... Kd5 {[%clk 0:00:04.4]} 62.
Rf4 {[%clk 0:00:11.2]} 62... Ke6 {[%clk 0:00:04.7]} 63. h5 {[%clk 0:00:11.6]}
63... f5 {[%clk 0:00:05]} 64. Rh4 {[%clk 0:00:11.4]} 64... Rh8 {[%clk
0:00:04.8]} 65. h6 {[%clk 0:00:11.4]} 65... Rh7 {[%clk 0:00:05.4]} 66. f4 {[%clk
0:00:11]} 66... Kf6 {[%clk 0:00:05.7]} 67. c4 {[%clk 0:00:11.4]} 67... Ke6
{[%clk 0:00:06.2]} 68. Kc3 {[%clk 0:00:11.8]} 68... Kd6 {[%clk 0:00:06.7]} 69.
Rh5 {[%clk 0:00:11.9]} 69... Ke6 {[%clk 0:00:07.2]} 70. b5 {[%clk 0:00:12.3]}
70... Kd6 {[%clk 0:00:07.6]} 71. Kb4 {[%clk 0:00:10.6]} 71... Ke6 {[%clk
0:00:07.8]} 72. c5 {[%clk 0:00:10.3]} 72... Kd5 {[%clk 0:00:08.2]} 73. b6 {[%clk
0:00:10.5]} 73... Kc6 {[%clk 0:00:08.5]} 74. Kc4 {[%clk 0:00:10.4]} 74... Kb7
{[%clk 0:00:05.1]} 75. Kb5 {[%clk 0:00:10.5]} 75... Kc8 {[%clk 0:00:05.2]} 76.
c6 {[%clk 0:00:10.6]} 76... Kb8 {[%clk 0:00:05.7]} 77. Rxf5 {[%clk 0:00:10.7]}
77... Rh8 {[%clk 0:00:04.8]} 78. h7 {[%clk 0:00:10.7]} 78... Rd8 {[%clk
0:00:03.6]} 79. Rg5 {[%clk 0:00:09.9]} 79... Rh8 {[%clk 0:00:01.5]} 80. Rg8+
{[%clk 0:00:09.9]} 80... Rxg8 {[%clk 0:00:02.2]} 81. hxg8=R# {[%clk 0:00:09.8]}
1-0